[Event "Mistrovství Čech mládeže 2023 - HD12"]
[Site "Harrachov, Czech Republic"]
[Date "2023.10.24"]
[Round "5.1"]
[White "Zika, Miroslav"]
[Black "Artamonov, Mikhail"]
[Result "1/2-1/2"]
[TimeControl "90m + 30s"]
[WhiteElo "1199"]
[BlackElo "1458"]

1. c4 {[%clk 01:30:58]} {[%emt 00:00:02]} c5 {[%clk 01:29:51]} {[%emt
00:01:10]} 2. Nf3 {[%clk 01:31:20]} {[%emt 00:00:07]} Nf6 {[%clk 01:29:32]}
{[%emt 00:00:49]} 3. Nc3 {[%clk 01:31:34]} {[%emt 00:00:17]} Nc6 {[%clk
01:29:02]} {[%emt 00:01:01]} 4. g3 {[%clk 01:31:30]} {[%emt 00:00:33]} g6
{[%clk 01:27:55]} {[%emt 00:01:37]} 5. Bg2 {[%clk 01:31:52]} {[%emt 00:00:07]}
Bg7 {[%clk 01:27:28]} {[%emt 00:00:57]} 6. O-O {[%clk 01:31:51]} {[%emt
00:00:31]} O-O {[%clk 01:26:09]} {[%emt 00:01:50]} 7. d3 {[%clk 01:30:19]}
{[%emt 00:02:02]} d6 {[%clk 01:25:18]} {[%emt 00:01:21]} 8. Bd2 {[%clk
01:30:24]} {[%emt 00:00:25]} h6 {[%clk 01:19:36]} {[%emt 00:06:12]} 9. Qc1
{[%clk 01:29:26]} {[%emt 00:01:27]} Kh7 {[%clk 01:19:45]} {[%emt 00:00:22]} 10.
Qc2 {[%clk 01:29:13]} {[%emt 00:00:43]} Bd7 {[%clk 01:15:54]} {[%emt 00:04:21]}
11. a3 {[%clk 01:29:20]} {[%emt 00:00:23]} Qc8 {[%clk 01:15:12]} {[%emt
00:01:12]} 12. Rac1 {[%clk 01:28:23]} {[%emt 00:01:26]} Bh3 {[%clk 01:11:25]}
{[%emt 00:04:17]} 13. Nd5 {[%clk 01:27:29]} {[%emt 00:01:24]} Bxg2 {[%clk
01:09:58]} {[%emt 00:01:57]} 14. Kxg2 {[%clk 01:27:24]} {[%emt 00:00:35]} e6
{[%clk 01:05:24]} {[%emt 00:05:05]} 15. Nxf6+ {[%clk 01:26:30]} {[%emt
00:01:23]} Bxf6 {[%clk 01:05:19]} {[%emt 00:00:36]} 16. Bc3 {[%clk 01:23:47]}
{[%emt 00:03:13]} e5 {[%clk 01:03:57]} {[%emt 00:01:51]} 17. b4 {[%clk
01:20:51]} {[%emt 00:03:27]} b6 {[%clk 00:57:20]} {[%emt 00:07:07]} 18. b5
{[%clk 01:19:05]} {[%emt 00:02:16]} Ne7 {[%clk 00:56:14]} {[%emt 00:01:36]} 19.
a4 {[%clk 01:18:49]} {[%emt 00:00:46]} Bg7 {[%clk 00:53:36]} {[%emt 00:03:08]}
20. a5 {[%clk 01:10:59]} {[%emt 00:08:19]} Qc7 {[%clk 00:38:45]} {[%emt
00:15:22]} 21. a6 {[%clk 01:10:39]} {[%emt 00:00:51]} d5 {[%clk 00:37:42]}
{[%emt 00:01:33]} 22. Bd2 {[%clk 01:07:22]} {[%emt 00:03:46]} Qd6 {[%clk
00:29:55]} {[%emt 00:08:17]} 23. e4 {[%clk 01:05:10]} {[%emt 00:02:41]} d4
{[%clk 00:28:57]} {[%emt 00:01:28]} 24. Ng1 {[%clk 01:01:58]} {[%emt 00:03:42]}
f5 {[%clk 00:26:54]} {[%emt 00:02:33]} 25. f3 {[%clk 01:01:17]} {[%emt
00:01:11]} Rf7 {[%clk 00:20:30]} {[%emt 00:06:54]} 26. Rce1 {[%clk 00:59:40]}
{[%emt 00:02:07]} fxe4 {[%clk 00:19:33]} {[%emt 00:01:28]} 27. fxe4 {[%clk
00:58:55]} {[%emt 00:01:15]} Raf8 {[%clk 00:19:31]} {[%emt 00:00:32]} 28. Qd1
{[%clk 00:57:28]} {[%emt 00:01:56]} Rxf1 {[%clk 00:14:37]} {[%emt 00:05:24]} 29.
Rxf1 {[%clk 00:56:13]} {[%emt 00:01:46]} Rxf1 {[%clk 00:15:01]} {[%emt
00:00:06]} 30. Qxf1 {[%clk 00:56:24]} {[%emt 00:00:18]} Qf6 {[%clk 00:15:01]}
{[%emt 00:00:30]} 31. Qxf6 {[%clk 00:55:40]} {[%emt 00:01:14]} Bxf6 {[%clk
00:15:30]} {[%emt 00:00:02]} 32. Nf3 {[%clk 00:53:30]} {[%emt 00:02:40]} Kg7
{[%clk 00:09:04]} {[%emt 00:06:55]} 33. h4 {[%clk 00:51:17]} {[%emt 00:02:43]}
Kh7 {[%clk 00:06:57]} {[%emt 00:02:38]} 34. Kh3 {[%clk 00:49:20]} {[%emt
00:02:26]} Bg7 {[%clk 00:05:16]} {[%emt 00:02:11]} 35. Nh2 {[%clk 00:47:21]}
{[%emt 00:02:29]} Bf6 {[%clk 00:02:27]} {[%emt 00:03:20]} 36. Ng4 {[%clk
00:47:29]} {[%emt 00:00:21]} Bg7 {[%clk 00:02:20]} {[%emt 00:00:38]} 37. Kg2
{[%clk 00:45:35]} {[%emt 00:02:24]} Nc8 {[%clk 00:02:04]} {[%emt 00:00:45]} 38.
Nh2 {[%clk 00:45:18]} {[%emt 00:00:47]} Nd6 {[%clk 00:01:39]} {[%emt 00:00:56]}
39. g4 {[%clk 00:43:40]} {[%emt 00:02:07]} Kg8 {[%clk 00:01:25]} {[%emt
00:00:45]} 40. h5 {[%clk 00:37:18]} {[%emt 00:06:52]} g5 {[%clk 00:01:18]}
{[%emt 00:00:37]} 41. Nf1 {[%clk 00:37:20]} {[%emt 00:00:27]} Bf6 {[%clk
00:01:09]} {[%emt 00:00:39]} 42. Ng3 {[%clk 00:36:37]} {[%emt 00:01:14]} Kg7
{[%clk 00:01:11]} {[%emt 00:00:28]} 43. Kf3 {[%clk 00:34:54]} {[%emt 00:02:12]}
Kh7 {[%clk 00:00:50]} {[%emt 00:00:51]} 44. Nf5 {[%clk 00:34:54]} {[%emt
00:00:30]} Nc8 {[%clk 00:01:07]} {[%emt 00:00:14]} 45. Be1 {[%clk 00:34:24]}
{[%emt 00:01:00]} Be7 {[%clk 00:00:48]} {[%emt 00:00:49]} 46. Bg3 {[%clk
00:34:37]} {[%emt 00:00:17]} Bf6 {[%clk 00:01:08]} {[%emt 00:00:10]} 47. Bh2
{[%clk 00:34:39]} {[%emt 00:00:28]} Bh8 {[%clk 00:01:09]} {[%emt 00:00:28]} 48.
Ng3 {[%clk 00:33:01]} {[%emt 00:02:09]} Kg8 {[%clk 00:01:01]} {[%emt 00:00:39]}
49. Ne2 {[%clk 00:32:47]} {[%emt 00:00:44]} Kf7 {[%clk 00:01:19]} {[%emt
00:00:11]} 50. Ng3 {[%clk 00:33:05]} {[%emt 00:00:11]} Kg8 {[%clk 00:01:44]}
{[%emt 00:00:06]} 51. Nf5 {[%clk 00:33:20]} {[%emt 00:00:15]} Kh7 {[%clk
00:02:09]} {[%emt 00:00:05]} 52. Ng3 {[%clk 00:33:27]} {[%emt 00:00:22]} Kg8
{[%clk 00:02:25]} {[%emt 00:00:15]} 53. Ne2 {[%clk 00:33:23]} {[%emt 00:00:33]}
Kf7 {[%clk 00:02:49]} {[%emt 00:00:07]} 54. Nc1 {[%clk 00:33:43]} {[%emt
00:00:10]} Ke6 {[%clk 00:02:32]} {[%emt 00:00:47]} 55. Nb3 {[%clk 00:33:38]}
{[%emt 00:00:35]} Bf6 {[%clk 00:02:49]} {[%emt 00:00:13]} 56. Bg3 {[%clk
00:33:18]} {[%emt 00:00:50]} Be7 {[%clk 00:02:25]} {[%emt 00:00:53]} 57. Be1
{[%clk 00:33:08]} {[%emt 00:00:40]} Bf6 {[%clk 00:02:22]} {[%emt 00:00:34]} 58.
Bd2 {[%clk 00:32:39]} {[%emt 00:01:00]} Be7 {[%clk 00:02:39]} {[%emt 00:00:12]}
59. Kf2 {[%clk 00:30:58]} {[%emt 00:02:11]} Bd8 {[%clk 00:02:33]} {[%emt
00:00:36]} 1/2-1/2

[Event "Mistrovství Čech mládeže 2023 - HD12"]
[Site "Harrachov, Czech Republic"]
[Date "2023.10.24"]
[Round "5.2"]
[White "Zrůst, Lukáš"]
[Black "Honcharov, Makar"]
[Result "1-0"]
[TimeControl "90m + 30s"]
[WhiteElo "1685"]
[BlackElo "1872"]

1. c4 {[%clk 01:30:57]} {[%emt 00:00:03]} g6 {[%clk 01:30:47]} {[%emt
00:00:14]} 2. Nc3 {[%clk 01:31:16]} {[%emt 00:00:10]} Nf6 {[%clk 01:31:09]}
{[%emt 00:00:08]} 3. g3 {[%clk 01:31:25]} {[%emt 00:00:21]} Bg7 {[%clk
01:31:34]} {[%emt 00:00:06]} 4. Bg2 {[%clk 01:31:47]} {[%emt 00:00:08]} O-O
{[%clk 01:31:59]} {[%emt 00:00:04]} 5. Nf3 {[%clk 01:32:01]} {[%emt 00:00:16]}
d6 {[%clk 01:32:26]} {[%emt 00:00:04]} 6. O-O {[%clk 01:32:12]} {[%emt
00:00:19]} e5 {[%clk 01:32:51]} {[%emt 00:00:05]} 7. d3 {[%clk 01:32:34]}
{[%emt 00:00:08]} Nc6 {[%clk 01:33:10]} {[%emt 00:00:11]} 8. Rb1 {[%clk
01:32:37]} {[%emt 00:00:27]} a5 {[%clk 01:33:34]} {[%emt 00:00:06]} 9. b3
{[%clk 01:32:05]} {[%emt 00:01:01]} h6 {[%clk 01:33:55]} {[%emt 00:00:10]} 10.
Bb2 {[%clk 01:32:00]} {[%emt 00:00:34]} Be6 {[%clk 01:34:18]} {[%emt 00:00:07]}
11. h3 {[%clk 01:31:26]} {[%emt 00:01:05]} Qd7 {[%clk 01:34:41]} {[%emt
00:00:07]} 12. Kh2 {[%clk 01:31:43]} {[%emt 00:00:12]} Nh5 {[%clk 01:34:06]}
{[%emt 00:01:05]} 13. e4 {[%clk 01:31:54]} {[%emt 00:00:19]} f5 {[%clk
01:34:12]} {[%emt 00:00:25]} 14. exf5 {[%clk 01:31:36]} {[%emt 00:00:48]} gxf5
{[%clk 01:34:36]} {[%emt 00:00:06]} 15. Nxe5 {[%clk 01:29:31]} {[%emt
00:02:35]} Nxe5 {[%emt 00:00:25]} 16. Qxh5 {[%clk 01:29:14]} {[%emt 00:00:37]}
Nxd3 {[%clk 01:35:16]} {[%emt 00:00:05]} 17. Ba1 {[%clk 01:28:51]} {[%emt
00:00:53]} f4 {[%clk 01:35:40]} {[%emt 00:00:06]} 18. Nd5 {[%clk 01:25:53]}
{[%emt 00:03:27]} fxg3+ {[%clk 01:34:14]} {[%emt 00:01:56]} 19. fxg3 {[%clk
01:25:53]} {[%emt 00:00:28]} Ne5 {[%clk 01:34:07]} {[%emt 00:00:40]} 20. Bxe5
{[%clk 01:15:45]} {[%emt 00:10:07]} dxe5 {[%clk 01:29:49]} {[%emt 00:04:48]} 21.
Qg6 {[%clk 01:12:29]} {[%emt 00:04:15]} Bxd5 {[%clk 01:21:04]} {[%emt
00:09:16]} 22. Bxd5+ {[%emt 00:00:16]} Kh8 {[%clk 01:21:27]} {[%emt 00:00:05]}
23. Be4 {[%clk 01:12:37]} {[%emt 00:02:00]} Rxf1 {[%clk 01:17:09]} {[%emt
00:03:27]} 24. Qh7# {[%clk 01:12:49]} {[%emt 00:00:18]} 1-0

[Event "Mistrovství Čech mládeže 2023 - HD12"]
[Site "Harrachov, Czech Republic"]
[Date "2023.10.24"]
[Round "5.3"]
[White "Rendl, Luboš"]
[Black "Kubát, Jonáš"]
[Result "1-0"]
[TimeControl "90m + 30s"]
[WhiteElo "1420"]
[BlackElo "1423"]

1. e4 {[%clk 01:30:58]} {[%emt 00:00:01]} c6 {[%clk 01:30:54]} {[%emt
00:00:06]} 2. d4 {[%clk 01:30:51]} {[%emt 00:00:38]} d5 {[%clk 01:31:17]}
{[%emt 00:00:06]} 3. e5 {[%clk 01:31:17]} {[%emt 00:00:04]} c5 {[%clk
01:31:40]} {[%emt 00:00:08]} 4. Nf3 {[%clk 01:31:31]} {[%emt 00:00:15]} Bg4
{[%clk 01:31:54]} {[%emt 00:00:16]} 5. dxc5 {[%clk 01:30:49]} {[%emt 00:01:13]}
e6 {[%clk 01:32:09]} {[%emt 00:00:14]} 6. a3 {[%clk 01:29:15]} {[%emt
00:02:05]} Bxc5 {[%clk 01:31:27]} {[%emt 00:01:10]} 7. b4 {[%clk 01:22:25]}
{[%emt 00:07:21]} Bxf3 {[%clk 01:31:04]} {[%emt 00:00:53]} 8. gxf3 {[%clk
01:21:31]} {[%emt 00:01:24]} Bb6 {[%clk 01:31:20]} {[%emt 00:00:14]} 9. Bb2
{[%clk 01:20:02]} {[%emt 00:01:59]} Ne7 {[%clk 01:29:56]} {[%emt 00:01:54]} 10.
Rg1 {[%clk 01:18:58]} {[%emt 00:01:33]} Ng6 {[%clk 01:29:35]} {[%emt 00:00:51]}
11. Nd2 {[%clk 01:13:20]} {[%emt 00:06:08]} Nd7 {[%clk 01:26:50]} {[%emt
00:03:16]} 12. f4 {[%clk 01:09:58]} {[%emt 00:03:52]} Nxf4 {[%clk 01:26:12]}
{[%emt 00:01:08]} 13. Rxg7 {[%clk 01:09:10]} {[%emt 00:01:19]} Ng6 {[%clk
01:26:13]} {[%emt 00:00:28]} 14. Qh5 {[%clk 01:07:23]} {[%emt 00:02:15]} h6
{[%clk 01:23:17]} {[%emt 00:03:28]} 15. Rxg6 {[%clk 01:06:58]} {[%emt
00:00:56]} fxg6 {[%clk 01:22:26]} {[%emt 00:01:20]} 16. Qxg6+ {[%clk 01:07:22]}
{[%emt 00:00:06]} Kf8 {[%clk 01:22:40]} {[%emt 00:00:15]} 17. Qxe6 {[%clk
01:01:26]} {[%emt 00:06:27]} Qe7 {[%clk 00:58:43]} {[%emt 00:24:27]} 18. Qxd5
{[%clk 00:55:19]} {[%emt 00:06:37]} Nf6 {[%clk 00:58:27]} {[%emt 00:00:44]} 19.
Qf3 {[%clk 00:54:19]} {[%emt 00:01:18]} Re8 {[%clk 00:57:16]} {[%emt 00:01:55]}
20. O-O-O {[%clk 00:54:20]} {[%emt 00:00:29]} Rc8 {[%clk 00:52:03]} {[%emt
00:05:43]} 21. exf6 {[%clk 00:49:41]} {[%emt 00:05:09]} Qh7 {[%clk 00:51:23]}
{[%emt 00:01:09]} 22. Bd3 {[%clk 00:49:49]} {[%emt 00:00:22]} Qd7 {[%clk
00:50:31]} {[%emt 00:01:19]} 23. Bf5 {[%clk 00:45:51]} {[%emt 00:04:33]} 1-0

[Event "Mistrovství Čech mládeže 2023 - HD12"]
[Site "Harrachov, Czech Republic"]
[Date "2023.10.24"]
[Round "5.4"]
[White "Černý, Rodan"]
[Black "Janoušková, Eliška"]
[Result "1/2-1/2"]
[TimeControl "90m + 30s"]
[WhiteElo "1383"]
[BlackElo "1385"]

1. e4 {[%clk 01:30:56]} {[%emt 00:00:03]} c5 {[%clk 01:30:48]} {[%emt
00:00:12]} 2. Nf3 {[%clk 01:31:21]} {[%emt 00:00:05]} e6 {[%clk 01:30:31]}
{[%emt 00:00:47]} 3. d4 {[%clk 01:31:46]} {[%emt 00:00:06]} cxd4 {[%clk
01:30:10]} {[%emt 00:00:50]} 4. Nxd4 {[%clk 01:32:01]} {[%emt 00:00:14]} Nf6
{[%clk 01:29:51]} {[%emt 00:00:50]} 5. Nc3 {[%clk 01:32:22]} {[%emt 00:00:09]}
d6 {[%clk 01:29:45]} {[%emt 00:00:36]} 6. g3 {[%clk 01:30:25]} {[%emt
00:02:27]} Be7 {[%clk 01:28:19]} {[%emt 00:01:55]} 7. Bg2 {[%clk 01:29:33]}
{[%emt 00:01:22]} O-O {[%clk 01:27:04]} {[%emt 00:01:44]} 8. O-O {[%clk
01:27:22]} {[%emt 00:02:42]} a6 {[%clk 01:23:24]} {[%emt 00:04:11]} 9. a4
{[%clk 01:25:51]} {[%emt 00:02:02]} Qc7 {[%clk 01:18:57]} {[%emt 00:04:56]} 10.
Be3 {[%clk 01:18:38]} {[%emt 00:07:43]} Nc6 {[%clk 01:13:57]} {[%emt 00:05:30]}
11. Nxc6 {[%clk 01:03:55]} {[%emt 00:15:13]} bxc6 {[%clk 01:11:19]} {[%emt
00:03:08]} 12. a5 {[%clk 01:01:03]} {[%emt 00:03:22]} Nd7 {[%clk 00:58:05]}
{[%emt 00:13:44]} 13. Na4 {[%clk 00:52:08]} {[%emt 00:09:25]} Bb7 {[%clk
00:54:07]} {[%emt 00:04:28]} 14. Qe2 {[%clk 00:47:52]} {[%emt 00:04:46]} c5
{[%clk 00:51:21]} {[%emt 00:03:16]} 15. c4 {[%clk 00:47:15]} {[%emt 00:01:08]}
Rab8 {[%clk 00:48:33]} {[%emt 00:03:17]} 16. Rfd1 {[%clk 00:45:41]} {[%emt
00:02:03]} Bc6 {[%clk 00:46:59]} {[%emt 00:02:05]} 17. Nc3 {[%clk 00:44:39]}
{[%emt 00:01:32]} Nf6 {[%clk 00:44:34]} {[%emt 00:02:55]} 18. Bf4 {[%clk
00:40:26]} {[%emt 00:04:43]} Rfd8 {[%clk 00:40:23]} {[%emt 00:04:41]} 19. e5
{[%clk 00:33:57]} {[%emt 00:06:59]} Ne8 {[%clk 00:38:37]} {[%emt 00:02:14]} 20.
exd6 {[%clk 00:32:46]} {[%emt 00:01:44]} Bxd6 {[%clk 00:35:40]} {[%emt
00:03:26]} 21. Be3 {[%clk 00:31:24]} {[%emt 00:01:51]} Bxg2 {[%clk 00:35:43]}
{[%emt 00:00:28]} 22. Kxg2 {[%clk 00:31:53]} {[%emt 00:00:01]} Qb7+ {[%clk
00:35:27]} {[%emt 00:00:47]} 23. Kg1 {[%clk 00:31:46]} {[%emt 00:00:35]} Nf6
{[%clk 00:29:29]} {[%emt 00:06:29]} 24. Bg5 {[%clk 00:30:53]} {[%emt 00:01:23]}
Be7 {[%clk 00:29:32]} {[%emt 00:00:27]} 25. Bf4 {[%clk 00:30:52]} {[%emt
00:00:31]} Rbc8 {[%clk 00:29:24]} {[%emt 00:00:37]} 26. Na4 {[%clk 00:29:41]}
{[%emt 00:01:41]} Qc6 {[%clk 00:25:43]} {[%emt 00:04:11]} 27. Nb6 {[%clk
00:29:29]} {[%emt 00:00:43]} Rxd1+ {[%clk 00:25:46]} {[%emt 00:00:27]} 28. Rxd1
{[%clk 00:29:43]} {[%emt 00:00:15]} Rd8 {[%clk 00:25:42]} {[%emt 00:00:35]} 29.
Be3 {[%clk 00:27:58]} {[%emt 00:02:15]} 1/2-1/2

[Event "Mistrovství Čech mládeže 2023 - HD12"]
[Site "Harrachov, Czech Republic"]
[Date "2023.10.24"]
[Round "5.5"]
[White "Trejbal, Jindřich"]
[Black "Kolář, Edvard"]
[Result "1-0"]
[TimeControl "90m + 30s"]
[WhiteElo "1329"]
[BlackElo "1473"]

1. e4 {[%clk 01:30:57]} {[%emt 00:00:02]} e6 {[%clk 01:30:46]} {[%emt
00:00:15]} 2. d4 {[%clk 01:30:31]} {[%emt 00:00:55]} d5 {[%clk 01:30:53]}
{[%emt 00:00:22]} 3. exd5 {[%clk 01:30:24]} {[%emt 00:00:38]} exd5 {[%clk
01:31:14]} {[%emt 00:00:10]} 4. c4 {[%clk 01:30:08]} {[%emt 00:00:45]} Bb4+
{[%clk 01:31:22]} {[%emt 00:00:22]} 5. Nc3 {[%clk 01:29:21]} {[%emt 00:01:17]}
c6 {[%clk 01:30:16]} {[%emt 00:01:37]} 6. Bd3 {[%clk 01:28:12]} {[%emt
00:01:38]} Nf6 {[%clk 01:27:11]} {[%emt 00:03:34]} 7. Nge2 {[%clk 01:25:38]}
{[%emt 00:03:04]} O-O {[%clk 01:24:44]} {[%emt 00:02:55]} 8. O-O {[%clk
01:24:09]} {[%emt 00:02:01]} Bd6 {[%clk 01:20:36]} {[%emt 00:04:39]} 9. h3
{[%clk 01:16:27]} {[%emt 00:08:11]} Re8 {[%clk 01:14:34]} {[%emt 00:06:32]} 10.
Bg5 {[%clk 01:11:46]} {[%emt 00:05:11]} Nbd7 {[%clk 01:11:16]} {[%emt
00:03:46]} 11. Qc2 {[%clk 01:04:29]} {[%emt 00:07:50]} dxc4 {[%clk 01:05:02]}
{[%emt 00:06:44]} 12. Bxc4 {[%clk 01:04:16]} {[%emt 00:00:43]} Nf8 {[%clk
01:03:31]} {[%emt 00:01:54]} 13. Ne4 {[%clk 00:56:08]} {[%emt 00:08:44]} Be7
{[%clk 00:58:17]} {[%emt 00:05:40]} 14. Nc5 {[%clk 00:46:12]} {[%emt 00:10:30]}
h6 {[%clk 00:54:47]} {[%emt 00:04:01]} 15. Bf4 {[%clk 00:42:15]} {[%emt
00:04:26]} Ng6 {[%clk 00:53:31]} {[%emt 00:01:45]} 16. Qxg6 {[%clk 00:40:02]}
{[%emt 00:02:44]} Kh8 {[%clk 00:52:23]} {[%emt 00:01:38]} 17. Bxf7 {[%clk
00:35:34]} {[%emt 00:04:58]} Rf8 {[%clk 00:52:08]} {[%emt 00:00:42]} 18. Be6
{[%clk 00:28:30]} {[%emt 00:07:37]} Bxc5 {[%clk 00:51:08]} {[%emt 00:01:31]} 19.
Bxc8 {[%clk 00:28:00]} {[%emt 00:01:00]} Bxd4 {[%clk 00:50:15]} {[%emt
00:01:22]} 20. Bxb7 {[%clk 00:26:32]} {[%emt 00:01:59]} Nd5 {[%clk 00:48:24]}
{[%emt 00:02:19]} 21. Bxa8 {[%clk 00:24:47]} {[%emt 00:02:17]} Nxf4 {[%clk
00:48:32]} {[%emt 00:00:21]} 22. Nxf4 {[%clk 00:24:48]} {[%emt 00:00:30]} Qxa8
{[%clk 00:48:30]} {[%emt 00:00:31]} 23. Ne6 {[%clk 00:24:33]} {[%emt 00:00:46]}
1-0

[Event "Mistrovství Čech mládeže 2023 - HD12"]
[Site "Harrachov, Czech Republic"]
[Date "2023.10.24"]
[Round "5.6"]
[White "Remizov, Artem"]
[Black "Málek, Daniel"]
[Result "0-1"]
[TimeControl "90m + 30s"]
[WhiteElo "1259"]
[BlackElo "1404"]

1. e4 {[%clk 01:30:58]} {[%emt 00:00:01]} e5 {[%clk 01:30:47]} {[%emt
00:00:14]} 2. Nf3 {[%clk 01:31:20]} {[%emt 00:00:08]} Nc6 {[%clk 01:31:08]}
{[%emt 00:00:08]} 3. Nc3 {[%clk 01:31:29]} {[%emt 00:00:21]} Bc5 {[%clk
01:31:16]} {[%emt 00:00:22]} 4. Nxe5 {[%clk 01:30:34]} {[%emt 00:01:26]} Bxf2+
{[%clk 01:28:22]} {[%emt 00:03:23]} 5. Kxf2 {[%clk 01:30:53]} {[%emt 00:00:11]}
Nxe5 {[%clk 01:28:27]} {[%emt 00:00:25]} 6. d4 {[%emt 00:01:43]} Qf6+ {[%clk
01:27:07]} {[%emt 00:01:48]} 7. Ke1 {[%clk 01:29:38]} {[%emt 00:00:34]} Nc6
{[%clk 01:26:31]} {[%emt 00:01:06]} 8. d5 {[%clk 01:24:40]} {[%emt 00:05:29]}
Ne5 {[%clk 01:26:15]} {[%emt 00:00:45]} 9. Be3 {[%clk 01:23:40]} {[%emt
00:01:31]} d6 {[%clk 01:25:52]} {[%emt 00:00:53]} 10. Nb5 {[%clk 01:20:29]}
{[%emt 00:03:41]} Qh4+ {[%clk 01:23:14]} {[%emt 00:03:06]} 11. Kd2 {[%clk
01:17:32]} {[%emt 00:03:29]} Kd8 {[%clk 01:18:32]} {[%emt 00:05:11]} 12. Bd3
{[%clk 01:13:37]} {[%emt 00:04:27]} Bd7 {[%clk 01:17:27]} {[%emt 00:01:33]} 13.
g3 {[%clk 01:09:04]} {[%emt 00:05:03]} Qe7 {[%clk 01:17:21]} {[%emt 00:00:34]}
14. Nxa7 {[%clk 01:06:02]} {[%emt 00:03:35]} Bg4 {[%clk 01:16:32]} {[%emt
00:01:18]} 15. Qf1 {[%clk 00:59:33]} {[%emt 00:06:59]} Nf3+ {[%clk 01:13:20]}
{[%emt 00:03:42]} 16. Kc1 {[%clk 00:59:44]} {[%emt 00:00:19]} f5 {[%clk
01:13:28]} {[%emt 00:00:22]} 17. h3 {[%clk 00:54:18]} {[%emt 00:05:57]} Bh5
{[%clk 01:12:51]} {[%emt 00:01:07]} 18. Be2 {[%clk 00:41:34]} {[%emt 00:13:14]}
Qxe4 {[%clk 01:11:57]} {[%emt 00:01:22]} 19. Bf2 {[%clk 00:38:48]} {[%emt
00:03:17]} Nd4 {[%clk 01:08:33]} {[%emt 00:03:52]} 20. Bxh5 {[%clk 00:37:44]}
{[%emt 00:01:36]} Qxc2# {[%clk 01:08:19]} {[%emt 00:00:44]} 0-1